bitfinex-derivatives/quotes_BTCF0:USTF0_20241210
["timestamp","ask_amount","ask_price","bid_price","bid_amount"]
[1733833931214,0.051358,97311.0,97299.0,0.44908112]
[1733833931515,0.00012,97300.0,97299.0,0.44908112]
[1733833931812,0.00012,97300.0,97299.0,0.44508112]
[1733833932611,0.00012,97300.0,97299.0,0.44908112]
[1733833935019,0.01024769,97300.0,97299.0,0.44908112]
[1733833935215,0.00012,97300.0,97299.0,0.44908112]
[1733833940621,0.00012,97300.0,97299.0,0.63340365]
[1733833940813,0.00012,97300.0,97299.0,0.63326086]
[1733833941524,0.00012,97300.0,97299.0,0.44908112]
[1733833942125,0.3608,97303.0,97299.0,0.44908112]
[1733833942316,0.01039179,97316.0,97306.0,0.05136]
[1733833942317,0.051357,97314.0,97306.0,0.05136]
[1733833942513,0.07206758,97313.0,97307.0,0.1008]
[1733833942715,0.02071058,97313.0,97307.0,0.1008]
[1733833942919,0.05136,97308.0,97307.0,0.1008]
[1733833943316,0.05136,97308.0,97307.0,0.0509]
[1733833943517,0.05136,97308.0,97300.0,0.54497974]
[1733833943518,0.051363,97301.0,97300.0,0.00052]
[1733833943731,0.051364,97300.0,97299.0,0.44960112]
[1733833943918,0.412164,97300.0,97299.0,0.44908112]
[1733833944913,0.412164,97300.0,97299.0,0.44508112]
[1733833945115,0.412164,97300.0,97299.0,0.44708112]
[1733833946113,0.412164,97300.0,97299.0,0.44908112]
[1733833946430,0.412164,97300.0,97299.0,0.69470557]
[1733833946623,0.412164,97300.0,97299.0,0.44908112]
[1733833947119,0.42232055,97300.0,97299.0,0.44908112]
[1733833948429,0.42232055,97300.0,97299.0,0.63364712]
[1733833948618,0.42232055,97300.0,97299.0,0.44908112]
[1733833950131,0.42232055,97300.0,97299.0,0.4284694]
[1733833950523,0.42232055,97300.0,97299.0,0.40786321]
[1733833952223,0.42432055,97300.0,97299.0,0.40586321]
[1733833952426,0.54650047,97300.0,97299.0,0.40586321]
[1733833952730,0.54650047,97300.0,97299.0,0.36141402]
[1733833952930,0.54650047,97300.0,97299.0,0.32350405]
[1733833952931,0.42732055,97300.0,97299.0,0.32350405]
[1733833953132,0.42732055,97300.0,97299.0,0.30252318]
[1733833953133,0.54950031,97300.0,97299.0,0.30252318]
[1733833953339,0.54950031,97300.0,97285.0,0.24608313]
[1733833953340,0.05137,97288.0,97285.0,0.24608313]
[1733833953626,0.36092,97286.0,97283.0,0.24608313]
[1733833953830,0.00012,97286.0,97285.0,0.3608]
[1733833954142,0.1374424,97300.0,97285.0,0.66892231]
[1733833954143,0.00563389,97300.0,97285.0,0.66892231]
[1733833954325,0.00511388,97300.0,97298.0,0.05145098]
[1733833954522,0.00211388,97300.0,97299.0,0.10436]
[1733833954725,0.00511388,97300.0,97299.0,0.7134479]
[1733833955034,0.3608,97320.0,97313.0,0.051357]
[1733833955227,0.412153,97320.0,97312.0,0.24611524]
[1733833955531,0.412153,97320.0,97319.0,6e-05]
[1733833956028,0.41224168,97320.0,97319.0,6e-05]
[1733833956925,0.42160021,97320.0,97319.0,6e-05]
[1733833957939,0.42260021,97320.0,97319.0,6e-05]
[1733833958127,0.42264445,97320.0,97319.0,6e-05]
[1733833959138,0.42264445,97320.0,97319.0,0.00106]
[1733833959529,0.051364,97299.0,97298.0,8.598e-05]
[1733833959728,0.42156677,97299.0,97298.0,8.598e-05]
[1733833960732,0.412164,97299.0,97298.0,8.598e-05]
[1733833961829,0.42142764,97299.0,97298.0,8.598e-05]
[1733833962342,0.051374,97281.0,97278.0,0.24611524]
[1733833962637,0.051365,97298.0,97278.0,0.246025]
[1733833962638,0.00926327,97280.0,97278.0,0.246025]
[1733833962933,0.00926327,97280.0,97279.0,0.246025]
[1733833962934,0.051374,97280.0,97279.0,0.246025]
[1733833963125,0.051374,97280.0,97273.0,0.30764406]
[1733833963329,0.051374,97280.0,97279.0,0.24608905]
[1733833964529,0.06062163,97280.0,97279.0,8.773e-05]
[1733833964737,0.051374,97280.0,97279.0,8.773e-05]
[1733833965330,0.051374,97280.0,97279.0,0.24605188]
[1733833965531,0.051374,97280.0,97279.0,8.773e-05]
[1733833965727,0.051374,97280.0,97279.0,0.24605188]
[1733833965930,0.3608,97285.0,97279.0,0.24705188]
[1733833966132,0.3608,97285.0,97279.0,0.24905188]
[1733833966333,0.3608,97285.0,97284.0,6e-05]
[1733833966334,0.051372,97285.0,97284.0,6e-05]
[1733833966640,0.051369,97291.0,97284.0,0.29996588]
[1733833966839,0.3608,97299.0,97287.0,0.3608]
[1733833967135,0.3608,97299.0,97294.0,0.24591205]
[1733833967444,0.3608,97299.0,97295.0,0.34911205]
[1733833967735,0.3608,97299.0,97295.0,0.40261205]
[1733833967936,0.3608,97299.0,97296.0,0.051366]
[1733833968338,0.051366,97296.0,97295.0,0.40261205]
[1733833968734,0.00012,97296.0,97295.0,0.1567]
[1733833968940,0.00012,97296.0,97295.0,0.209066]
[1733833969240,0.00012,97296.0,97295.0,0.001]
[1733833969241,0.412286,97296.0,97295.0,0.001]
[1733833969539,0.36092,97296.0,97281.0,0.24596313]
[1733833969740,0.051367,97295.0,97284.0,0.24596313]
[1733833969931,0.051367,97294.0,97291.0,0.24596313]
[1733833970142,0.051368,97293.0,97290.0,0.24596313]
[1733833970441,0.051368,97292.0,97291.0,0.24596313]
[1733833971643,0.051369,97291.0,97290.0,0.24596313]
[1733833971838,0.05137,97289.0,97288.0,0.3608]
[1733833972142,0.051371,97287.0,97286.0,0.0532]
[1733833972346,0.051371,97287.0,97286.0,0.414]
[1733833972542,0.051491,97287.0,97286.0,0.414]
[1733833973247,0.051491,97287.0,97286.0,0.3608]
[1733833975744,0.052491,97287.0,97286.0,0.3608]
[1733833975945,0.052491,97287.0,97286.0,0.60679007]
[1733833976850,0.00112,97287.0,97286.0,0.60679007]
[1733833977047,0.00112,97287.0,97286.0,0.412171]
[1733833978343,0.00112,97287.0,97286.0,0.413171]
[1733833978942,0.00012,97287.0,97286.0,0.416171]
[1733833979244,0.00012,97291.0,97290.0,0.051369]
[1733833979550,0.051366,97297.0,97296.0,0.051366]
[1733833980542,0.051366,97297.0,97296.0,0.2460354]
[1733833980743,0.051366,97297.0,97296.0,6e-05]
[1733833982448,0.054365,97297.0,97296.0,6e-05]
[1733833983054,0.003,97297.0,97296.0,0.051426]
[1733833984042,0.00052001,97304.0,97303.0,0.051362]
[1733833984240,0.10176833,97315.0,97305.0,0.051361]
[1733833984241,0.00052001,97310.0,97305.0,0.051361]
[1733833984442,0.01029579,97315.0,97305.0,0.29733882]
[1733833984443,0.05136,97308.0,97305.0,0.29733882]
[1733833984654,0.05136,97308.0,97306.0,0.05136]
[1733833985146,0.01029579,97315.0,97304.0,0.24597782]
[1733833985345,0.10142867,97314.0,97305.0,0.24597782]
[1733833985537,0.10142867,97314.0,97304.0,0.24597782]
[1733833985741,0.051361,97305.0,97304.0,0.24597782]
[1733833986446,0.3608,97311.0,97304.0,0.24597782]
[1733833986653,0.051362,97304.0,97303.0,0.3608]
[1733833987054,0.051482,97304.0,97303.0,0.3608]
[1733833987750,0.051359,97309.0,97303.0,0.60677782]
[1733833987938,0.051359,97309.0,97304.0,0.29733982]
[1733833988139,0.051359,97309.0,97304.0,0.051362]
[1733833988344,0.3608,97311.0,97304.0,0.24597782]
[1733833988550,0.07470742,97313.0,97304.0,0.24597782]
[1733833988551,0.07270742,97313.0,97309.0,0.051359]
[1733833988853,8.868e-05,97320.0,97319.0,0.051354]
[1733833989059,0.3608,97330.0,97319.0,0.3608]
[1733833989359,0.09147254,97339.0,97329.0,0.3608]
[1733833989543,0.09147254,97343.0,97339.0,0.051343]
[1733833989745,0.09147254,97344.0,97343.0,0.051341]
[1733833989948,0.4125,97349.0,97343.0,0.051341]
[1733833989949,0.50397254,97349.0,97343.0,0.051341]
[1733833990150,9.342e-05,97344.0,97343.0,6e-05]
[1733833990851,0.00638622,97344.0,97343.0,6e-05]
[1733833991042,0.00638622,97344.0,97329.0,0.24596984]
[1733833991043,0.051341,97343.0,97329.0,0.24596984]
[1733833991345,0.00638622,97344.0,97321.0,0.051352]
[1733833991346,0.412146,97334.0,97321.0,0.051352]
[1733833991544,0.15277567,97333.0,97321.0,0.051352]
[1733833991745,0.10142867,97333.0,97329.0,0.001]
[1733833991944,0.051348,97330.0,97329.0,0.001]
[1733833992357,0.0062928,97331.0,97329.0,0.001]
[1733833992746,0.0062928,97331.0,97330.0,6e-05]
[1733833993852,0.0062928,97331.0,97330.0,0.36086]
[1733833994055,0.0062928,97331.0,97330.0,0.36186]
[1733833994255,0.0517,97349.0,97336.0,0.051345]
[1733833994256,0.052,97347.0,97336.0,0.051345]
[1733833994549,0.052,97347.0,97343.0,6e-05]
[1733833994750,0.36132001,97345.0,97343.0,6e-05]
[1733833994950,0.41214,97345.0,97343.0,6e-05]
[1733833995151,0.41266001,97345.0,97343.0,6e-05]
[1733833996253,0.41266001,97345.0,97343.0,0.00106]
[1733833996750,0.36132001,97345.0,97343.0,0.00106]
[1733833996953,0.3608,97345.0,97343.0,0.00106]
[1733833997154,0.3608,97345.0,97343.0,0.00206]
[1733833998345,0.05143442,97344.0,97343.0,0.00206]
[1733834000759,0.051341,97343.0,97320.0,0.051353]
[1733834001061,9.342e-05,97344.0,97326.0,0.05135]
[1733834001062,0.3608,97335.0,97326.0,0.05135]
[1733834001261,0.10142867,97340.0,97326.0,0.05135]
[1733834001456,0.3608,97336.0,97326.0,0.05135]
[1733834001659,0.051347,97333.0,97326.0,0.05135]
[1733834002363,0.051347,97333.0,97320.0,0.10142867]
[1733834002658,0.051347,97333.0,97320.0,0.10242867]
[1733834003256,0.051347,97332.0,97326.0,0.05235]
[1733834003453,0.051347,97332.0,97328.0,0.3608]
[1733834003954,0.002,97333.0,97320.0,0.001]
[1733834004153,0.051353,97321.0,97320.0,0.001]
[1733834004355,0.051473,97321.0,97320.0,0.001]
[1733834005555,0.051353,97320.0,97319.0,0.3608]
[1733834006051,0.051473,97320.0,97319.0,0.3608]
[1733834006352,0.051473,97320.0,97301.0,0.3608]
[1733834006353,0.00012,97320.0,97301.0,0.3608]
[1733834006554,0.00012,97320.0,97303.0,0.051362]
[1733834006760,0.051354,97319.0,97301.0,0.3608]
[1733834006957,0.15378167,97320.0,97319.0,0.001]
[1733834007160,0.052353,97320.0,97319.0,0.001]
[1733834007461,0.052353,97320.0,97319.0,0.00106]
[1733834007462,0.053353,97320.0,97319.0,0.00106]
[1733834007662,0.051363,97302.0,97301.0,0.3608]
[1733834008087,0.051366,97295.0,97294.0,0.3608]
[1733834008363,0.051486,97295.0,97294.0,0.3608]
[1733834009755,0.00012,97295.0,97294.0,0.3618]
[1733834009953,0.00012,97295.0,97294.0,0.3638]
[1733834010362,0.05136,97308.0,97294.0,0.3638]
[1733834010558,0.05136,97308.0,97299.0,0.051364]
[1733834010871,0.05136,97308.0,97294.0,0.3638]
[1733834010872,0.01035329,97312.0,97307.0,6e-05]
[1733834011369,0.01035329,97312.0,97310.0,6e-05]
[1733834011763,0.06171129,97312.0,97310.0,6e-05]
[1733834012288,0.051355,97317.0,97310.0,6e-05]
[1733834012468,0.051358,97312.0,97310.0,6e-05]
[1733834013169,0.3618,97311.0,97310.0,6e-05]
[1733834013561,0.3628,97311.0,97310.0,6e-05]
[1733834019474,0.413158,97311.0,97310.0,6e-05]
[1733834019677,0.414158,97311.0,97310.0,6e-05]
[1733834020187,0.051373,97282.0,97281.0,0.00053]
[1733834020370,0.051372,97285.0,97281.0,0.00053]
[1733834020677,0.00012,97282.0,97281.0,0.00053]
[1733834021375,0.00012,97282.0,97281.0,0.00153]
[1733834025481,0.10142867,97291.0,97281.0,0.00153]
[1733834025482,0.3608,97296.0,97281.0,0.00153]
[1733834025784,0.3608,97317.0,97307.0,0.05136]
[1733834025974,0.3608,97317.0,97309.0,0.412159]
[1733834026173,0.412155,97317.0,97316.0,6e-05]
[1733834026379,0.051352,97324.0,97316.0,6e-05]
[1733834026589,0.47250993,97326.0,97317.0,0.3608]
[1733834026779,0.46222867,97326.0,97323.0,6e-05]
[1733834026975,0.36136001,97326.0,97325.0,6e-05]
[1733834027280,0.01010071,97333.0,97325.0,0.36086]
[1733834027583,0.10142867,97340.0,97332.0,6e-05]
[1733834027584,0.051344,97338.0,97332.0,6e-05]
[1733834027886,0.051344,97338.0,97337.0,6e-05]
[1733834028084,0.36089342,97344.0,97337.0,6e-05]
[1733834028284,0.051344,97339.0,97337.0,6e-05]
[1733834028983,0.45215235,97344.0,97325.0,0.3618]
[1733834028984,0.051344,97337.0,97325.0,0.41315]
[1733834029286,0.00012,97326.0,97325.0,0.41315]
[1733834029781,0.001,97333.0,97325.0,0.3618]
[1733834030082,0.001,97333.0,97332.0,0.001]
[1733834030286,0.001,97337.0,97332.0,0.001]
[1733834030677,0.001,97337.0,97336.0,6e-05]
[1733834032086,0.001,97337.0,97336.0,0.00106]
[1733834033074,0.002,97337.0,97336.0,0.00206]
[1733834033679,0.002,97337.0,97336.0,0.36286]
[1733834033886,9.342e-05,97344.0,97342.0,0.051342]
[1733834034277,0.0506,97360.0,97336.0,0.36286]
[1733834034278,0.09125893,97363.0,97343.0,6e-05]
[1733834034499,0.01030176,97378.0,97372.0,0.051325]
[1733834034686,0.02007153,97377.0,97374.0,0.051325]
[1733834034884,0.10142867,97390.0,97371.0,0.3608]
[1733834034885,0.01043403,97381.0,97376.0,0.051324]
[1733834035095,0.01043403,97381.0,97371.0,0.3608]
[1733834035096,0.10142867,97390.0,97371.0,0.3608]
[1733834035287,0.051321,97381.0,97380.0,6e-05]
[1733834035492,0.051323,97378.0,97375.0,7.829e-05]
[1733834035679,0.00012425,97381.0,97375.0,7.829e-05]
[1733834036080,0.00012425,97381.0,97380.0,6e-05]
[1733834036591,0.00012425,97381.0,97380.0,0.00106]
[1733834036888,0.02112755,97381.0,97380.0,0.00106]
[1733834037994,0.02112755,97381.0,97380.0,0.00206]
[1733834040593,0.07244855,97381.0,97380.0,0.00206]
[1733834041686,0.02112755,97381.0,97380.0,0.00206]
[1733834041996,0.05132,97383.0,97380.0,0.00206]
[1733834042197,0.051321,97381.0,97380.0,0.00206]
[1733834042392,0.051321,97381.0,97380.0,0.002]
[1733834043101,0.05142023,97381.0,97380.0,0.002]
[1733834044189,0.10572023,97381.0,97380.0,0.002]
[1733834044388,0.15932023,97381.0,97380.0,0.002]
[1733834044588,0.15932023,97381.0,97380.0,0.001]
[1733834044792,0.15932023,97381.0,97380.0,0.002]
[1733834044995,0.1695845,97381.0,97380.0,0.002]
[1733834045598,9.923e-05,97381.0,97380.0,0.002]
[1733834045993,9.923e-05,97381.0,97380.0,0.053322]
[1733834046598,9.923e-05,97381.0,97380.0,0.108922]
[1733834048295,0.05142023,97381.0,97380.0,0.0576]
[1733834048499,0.05142023,97381.0,97380.0,0.002]
[1733834048697,0.05142023,97381.0,97375.0,7.829e-05]
[1733834048698,0.051324,97376.0,97375.0,7.829e-05]
[1733834049003,0.412244,97376.0,97375.0,7.829e-05]
[1733834051591,0.413244,97376.0,97375.0,0.00107829]
[1733834052708,0.052444,97376.0,97375.0,0.00107829]
[1733834053216,0.413244,97376.0,97375.0,0.00107829]
[1733834054107,0.42257459,97376.0,97375.0,0.00107829]
[1733834055007,0.413244,97376.0,97375.0,0.00107829]
[1733834055200,0.42258636,97376.0,97375.0,0.00107829]
[1733834055606,0.01046236,97376.0,97375.0,0.05240229]
[1733834055813,0.01042706,97376.0,97375.0,0.05240229]
[1733834055997,0.00223992,97376.0,97375.0,0.00107829]
[1733834056308,0.01155604,97376.0,97375.0,0.00107829]
[1733834056508,0.05356392,97376.0,97375.0,0.00107829]
[1733834056895,0.00223992,97376.0,97375.0,0.00107829]
[1733834057095,0.00245859,97376.0,97375.0,0.00107829]
[1733834057295,0.41458259,97376.0,97375.0,0.00107829]
[1733834057495,0.42390015,97376.0,97375.0,0.00107829]
[1733834058303,0.42411882,97376.0,97375.0,0.00107829]
[1733834058507,0.51537775,97376.0,97375.0,0.00107829]
[1733834058704,0.42411882,97376.0,97375.0,0.00107829]
[1733834062398,0.42411882,97376.0,97350.0,0.24596984]
[1733834062609,0.42411882,97376.0,97347.0,0.24596984]
[1733834062610,0.051337,97351.0,97347.0,0.24596984]
[1733834062797,0.00931756,97350.0,97344.0,0.30006984]
[1733834063002,0.051339,97347.0,97344.0,0.30006984]
[1733834063197,0.00955255,97346.0,97344.0,0.0541]
[1733834063412,0.00955255,97346.0,97341.0,0.24596984]
[1733834063413,0.07554185,97346.0,97341.0,0.24596984]
[1733834063718,0.02420185,97346.0,97340.0,0.00010182]
[1733834064010,0.09147723,97360.0,97354.0,0.051335]
[1733834064399,0.14280923,97361.0,97354.0,0.051335]
[1733834064699,0.14280923,97361.0,97360.0,6e-05]
[1733834065407,0.14283389,97361.0,97360.0,6e-05]
[1733834066200,0.054332,97361.0,97360.0,6e-05]
[1733834066721,0.416132,97361.0,97360.0,6e-05]
[1733834067096,0.56850353,97361.0,97360.0,6e-05]
[1733834067596,0.416132,97361.0,97360.0,6e-05]
[1733834068298,0.3648,97361.0,97340.0,0.00010182]
[1733834068499,0.051342,97341.0,97340.0,0.00010182]
[1733834069304,0.051462,97341.0,97340.0,0.00010182]
[1733834070109,0.053462,97341.0,97340.0,0.00010182]
[1733834070608,0.06468118,97341.0,97340.0,0.00010182]
[1733834071310,0.15603824,97341.0,97340.0,0.00010182]
[1733834071506,0.06468118,97341.0,97340.0,0.00010182]
[1733834072104,0.06368118,97341.0,97340.0,0.00010182]
[1733834072311,0.06468118,97341.0,97340.0,0.00010182]
[1733834072503,0.051352,97322.0,97319.0,0.3608]
[1733834072702,0.3608,97321.0,97316.0,0.0533]
[1733834072900,0.3608,97321.0,97301.0,0.24596984]
[1733834072901,0.00012,97320.0,97301.0,0.24596984]
[1733834073106,0.46222867,97311.0,97299.0,0.24596984]
[1733834073320,0.46222867,97311.0,97301.0,0.1840611]
[1733834073321,0.00012,97302.0,97301.0,0.1840611]
[1733834073609,0.00012,97300.0,97298.0,0.1840611]
[1733834073810,0.00012,97300.0,97298.0,0.65813484]
[1733834074017,0.00012,97299.0,97298.0,0.712165]
[1733834074306,0.00012009,97304.0,97303.0,0.051362]
[1733834074507,0.00012009,97304.0,97303.0,0.04995492]
[1733834074709,0.00012009,97304.0,97303.0,0.05001492]
[1733834075512,0.051355,97316.0,97313.0,0.051357]
[1733834075805,0.051355,97316.0,97315.0,0.36086]
[1733834077002,0.052355,97316.0,97315.0,0.36086]
[1733834077220,0.052355,97316.0,97315.0,6e-05]
[1733834077514,0.051362,97304.0,97303.0,0.003]
[1733834077809,0.412282,97304.0,97303.0,0.003]
[1733834078513,0.42175041,97304.0,97303.0,0.003]
[1733834079221,0.051363,97302.0,97301.0,0.00011546]
[1733834079402,0.06083141,97302.0,97301.0,0.00011546]
[1733834079715,0.051483,97302.0,97301.0,0.00011546]
[1733834080013,0.06088748,97302.0,97301.0,0.00011546]
[1733834080707,0.06188748,97302.0,97301.0,0.00011546]
[1733834080902,0.06529513,97302.0,97301.0,0.00011546]
[1733834082310,0.06529513,97302.0,97279.0,0.0547]
[1733834082311,0.051374,97280.0,97279.0,0.0547]
[1733834082706,0.051494,97280.0,97279.0,0.0547]
[1733834082910,0.05290165,97280.0,97279.0,0.0547]
[1733834083610,0.05290165,97280.0,97279.0,0.0607]
[1733834086612,0.05290165,97280.0,97279.0,0.006]
[1733834088317,0.05312214,97280.0,97279.0,0.006]
[1733834089115,0.05312214,97280.0,97279.0,0.005]
[1733834089628,0.05333651,97280.0,97279.0,0.005]
[1733834089923,0.051494,97280.0,97279.0,0.003]
[1733834090218,0.05430964,97280.0,97279.0,0.003]
[1733834091918,0.06370724,97280.0,97279.0,0.003]
[1733834094025,0.06370724,97280.0,97275.0,0.0001225]
[1733834094026,0.051389,97252.0,97251.0,0.1086]
[1733834094415,0.00012,97252.0,97251.0,0.1086]
[1733834095117,0.00293564,97252.0,97251.0,0.10870386]
[1733834096625,0.00293564,97252.0,97251.0,0.11470386]
[1733834097120,0.00293564,97252.0,97251.0,0.12370386]
[1733834098819,0.00301204,97252.0,97251.0,0.12370386]
[1733834099015,0.05440104,97252.0,97251.0,0.12370386]
[1733834099411,0.05440104,97252.0,97251.0,0.01510386]
[1733834099919,0.05462113,97252.0,97251.0,0.01510386]
[1733834100920,0.06443819,97252.0,97251.0,0.01510386]
[1733834101309,0.051395,97241.0,97240.0,0.00132]
[1733834101516,0.41641887,97241.0,97240.0,0.00132]
[1733834101716,0.41653887,97241.0,97240.0,0.00132]
[1733834101919,0.42607425,97241.0,97240.0,0.00132]
[1733834102827,0.42603852,97241.0,97240.0,0.00132]
[1733834103329,0.43630372,97241.0,97240.0,0.00132]
[1733834104027,0.43630372,97241.0,97240.0,0.00532]
[1733834104613,0.42603852,97241.0,97240.0,0.00532]
[1733834104823,0.37464352,97241.0,97240.0,0.00532]
[1733834106422,0.01384352,97241.0,97240.0,0.00532]
[1733834106620,0.01384352,97241.0,97240.0,0.056716]
[1733834106818,0.00108511,97252.0,97240.0,0.056716]
[1733834106819,8.511e-05,97252.0,97251.0,0.05139]
[1733834107019,0.00949586,97252.0,97251.0,0.05139]
[1733834107215,8.511e-05,97252.0,97251.0,0.05145]
[1733834107624,0.051381,97267.0,97259.0,0.051385]
[1733834107925,0.00939624,97266.0,97260.0,0.051385]
[1733834108119,0.00940045,97265.0,97260.0,0.051385]
[1733834108315,0.0562,97279.0,97258.0,0.3608]
[1733834108516,0.0094011,97270.0,97268.0,0.051381]
[1733834108723,7.366e-05,97270.0,97269.0,0.0575]
[1733834108922,0.05145366,97270.0,97269.0,0.0575]
[1733834109441,7.366e-05,97270.0,97269.0,0.0575]
[1733834109725,0.09131688,97303.0,97269.0,0.54132729]
[1733834109926,0.06063153,97302.0,97301.0,0.3608]
[1733834110234,0.06063396,97302.0,97301.0,0.3608]
[1733834110424,0.051363,97302.0,97301.0,0.3608]
[1733834110725,0.00010353,97302.0,97301.0,0.3608]
[1733834111117,0.051351,97325.0,97301.0,0.412163]
[1733834111323,0.06577084,97324.0,97318.0,0.051354]
[1733834111520,0.00928237,97323.0,97317.0,0.3608]
[1733834111720,0.051354,97319.0,97317.0,0.3608]
[1733834112128,0.00012293,97318.0,97317.0,0.3608]
[1733834113724,0.005,97325.0,97317.0,0.3608]
[1733834113926,0.005,97325.0,97324.0,0.412151]
[1733834114230,0.051346,97334.0,97324.0,0.412211]
[1733834114427,0.051346,97334.0,97333.0,0.35917201]
[1733834114728,0.051346,97334.0,97333.0,6e-05]
[1733834114729,0.05145742,97334.0,97333.0,6e-05]
[1733834115230,0.00011142,97334.0,97333.0,6e-05]
[1733834116238,0.00011142,97334.0,97333.0,0.36086]
[1733834116730,0.00411142,97334.0,97333.0,0.36086]
[1733834117635,0.00711142,97334.0,97333.0,0.36086]
[1733834118030,0.00511142,97334.0,97333.0,0.36086]
[1733834120739,0.00511142,97334.0,97333.0,6e-05]
[1733834121141,0.06321142,97334.0,97333.0,6e-05]
[1733834122326,0.07346389,97334.0,97333.0,6e-05]
[1733834123738,0.01536389,97334.0,97333.0,6e-05]
[1733834123937,0.00511142,97334.0,97333.0,6e-05]
[1733834130145,0.01529332,97334.0,97333.0,6e-05]
[1733834130449,0.00511142,97334.0,97333.0,6e-05]
[1733834131650,0.05981142,97334.0,97333.0,6e-05]
[1733834132044,0.06132208,97334.0,97333.0,6e-05]
[1733834132556,0.017049,97334.0,97333.0,6e-05]
[1733834132754,0.00662208,97334.0,97333.0,6e-05]
[1733834135647,0.01462208,97334.0,97333.0,0.00106]
[1733834136251,0.01503398,97334.0,97333.0,6e-05]
[1733834136455,0.01503398,97334.0,97333.0,0.00106]
[1733834136456,0.02004924,97334.0,97333.0,0.00106]
[1733834136648,0.02504924,97334.0,97333.0,0.00106]
[1733834137560,0.03512738,97334.0,97333.0,0.00106]
[1733834137850,0.03525657,97334.0,97333.0,0.00106]
[1733834138445,0.02125657,97334.0,97333.0,6e-05]
[1733834138646,0.03525657,97334.0,97333.0,0.00106]
[1733834139153,0.03547653,97334.0,97333.0,0.00106]
[1733834139663,0.02647653,97334.0,97333.0,6e-05]
[1733834139855,0.03547653,97334.0,97333.0,0.00106]
[1733834140358,0.03569649,97334.0,97333.0,0.00106]
[1733834140553,0.03361672,97334.0,97333.0,0.00106]
[1733834140760,0.03653456,97334.0,97333.0,0.00106]
[1733834141256,0.05696137,97334.0,97333.0,0.00106]
[1733834141457,0.02645642,97334.0,97333.0,0.00106]
[1733834141655,0.10845148,97334.0,97333.0,0.00106]
[1733834141963,0.10845154,97334.0,97333.0,0.00106]
[1733834142160,0.01702926,97334.0,97333.0,0.00106]
[1733834142348,0.01202926,97334.0,97333.0,0.00106]
[1733834142660,0.01702926,97334.0,97333.0,0.00106]
[1733834142858,0.13891956,97334.0,97333.0,0.00106]
[1733834143257,0.01402926,97334.0,97333.0,0.00106]
[1733834143461,0.01402926,97334.0,97333.0,6e-05]
[1733834143462,0.12691956,97334.0,97333.0,6e-05]
[1733834143657,0.01402926,97334.0,97333.0,0.00106]
[1733834144554,0.1359302,97334.0,97333.0,0.00106]
[1733834145061,0.01402926,97334.0,97333.0,0.00106]
[1733834145362,0.01202926,97334.0,97333.0,0.00106]
[1733834145568,0.01702926,97334.0,97333.0,0.00106]
[1733834145856,0.05937526,97334.0,97333.0,6e-05]
[1733834146062,0.06837526,97334.0,97333.0,0.00106]
[1733834146657,0.05937526,97334.0,97333.0,6e-05]
[1733834146859,0.06337526,97334.0,97333.0,6e-05]
[1733834147455,0.06045742,97334.0,97333.0,6e-05]
[1733834147655,0.18549601,97334.0,97333.0,6e-05]
[1733834147859,0.06359507,97334.0,97333.0,6e-05]
[1733834148261,0.06381488,97334.0,97333.0,6e-05]
[1733834148458,0.06281488,97334.0,97333.0,6e-05]
[1733834148860,0.06378244,97334.0,97333.0,6e-05]
[1733834149163,0.06078244,97334.0,97333.0,6e-05]
[1733834149362,0.06478244,97334.0,97333.0,6e-05]
[1733834149556,0.06778244,97334.0,97333.0,0.00106]
[1733834151961,0.11772274,97334.0,97315.0,0.18459712]
[1733834152165,0.051356,97314.0,97313.0,0.18459712]
[1733834152460,0.05136,97308.0,97306.0,0.18459712]
[1733834152659,0.051361,97306.0,97302.0,0.24612949]
[1733834152859,0.051361,97306.0,97303.0,0.18461883]
[1733834152860,0.05568602,97306.0,97303.0,0.18461883]
[1733834153165,0.05568602,97306.0,97300.0,0.1847345]
[1733834153166,0.05580602,97306.0,97300.0,0.1847345]
[1733834153366,0.00444502,97306.0,97300.0,0.1847345]
[1733834153571,0.00012,97301.0,97300.0,0.1847345]
[1733834153866,0.00012,97301.0,97300.0,0.00011567]
[1733834154060,0.00444502,97301.0,97300.0,0.00011567]
[1733834154762,0.00444502,97301.0,97300.0,0.00311567]
[1733834155166,0.09573356,97301.0,97300.0,0.00311567]
[1733834155359,0.09573356,97301.0,97300.0,0.00011567]
[1733834155360,0.09673356,97301.0,97300.0,0.00011567]
[1733834155554,0.00544502,97301.0,97300.0,0.00511567]
[1733834155768,0.01466181,97301.0,97300.0,0.00511567]
[1733834155967,0.01466181,97301.0,97300.0,0.00011567]
[1733834156163,0.01466181,97301.0,97300.0,0.00111567]
[1733834156164,0.11212163,97301.0,97300.0,0.00111567]
[1733834156665,0.10612163,97301.0,97300.0,0.00011567]
[1733834156867,0.10290484,97301.0,97300.0,0.00111567]
[1733834157173,0.01166547,97301.0,97300.0,0.00111567]
[1733834157367,0.01188535,97301.0,97300.0,0.00111567]
[1733834157964,0.10609214,97301.0,97300.0,0.00111567]
[1733834158164,0.01485277,97301.0,97300.0,0.00111567]
[1733834159060,0.01485277,97301.0,97277.0,0.412176]
[1733834159265,0.10142867,97290.0,97279.0,0.051375]
[1733834159873,0.00573277,97285.0,97279.0,0.051375]
[1733834160061,0.00573277,97285.0,97280.0,8.496e-05]
[1733834160466,0.00573277,97285.0,97283.0,0.051373]
[1733834161165,0.00573277,97284.0,97283.0,0.051373]
[1733834161367,0.00573277,97284.0,97280.0,8.496e-05]
[1733834161965,0.01016014,97302.0,97280.0,8.496e-05]
[1733834161966,0.00573277,97282.0,97280.0,8.496e-05]
[1733834162767,0.00573277,97282.0,97280.0,0.05645896]
[1733834163177,0.00573277,97281.0,97280.0,0.00508496]
[1733834163361,0.00573277,97281.0,97280.0,0.05145896]
[1733834163565,0.00573277,97281.0,97280.0,0.00508496]
[1733834164974,0.00573277,97281.0,97280.0,0.00308496]
[1733834165272,0.00573277,97281.0,97280.0,0.00508496]
[1733834166770,0.36675278,97281.0,97280.0,0.003]
[1733834166974,0.42991025,97281.0,97251.0,0.18449972]
[1733834167282,0.051389,97253.0,97248.0,0.36148]
[1733834167572,0.10142867,97261.0,97248.0,0.3608]